fUSD/lending_fUSD_20240819
["ID","MTS","AMOUNT","RATE_DAILY","PERIOD"]
[335262335,1724056232192,-835.92,0.000105,2]
[335262336,1724056232201,-421.32,0.000105,2]
[335262337,1724056232211,-835.92,0.000105,2]
[335262338,1724056232220,-421.32,0.000105,2]
[335262339,1724056232230,-844.01,0.000105,2]
[335262340,1724056232239,-421.32,0.000105,2]
[335262341,1724056232249,-835.92,0.000105,2]
[335262342,1724056232258,-534.22,0.00010528,2]
[335262343,1724056232267,-3028.29,0.00010528,2]
[335262344,1724056232276,-1485.43868901,0.00010566,2]
[335262345,1724056232286,-421.32,0.000106,2]
[335262346,1724056232295,-836.01,0.000106,2]
[335262347,1724056232304,-421.32,0.000106,2]
[335262348,1724056232314,-416.35,0.000106,2]
[335262349,1724056232323,-1097.6,0.000106,2]
[335262350,1724056232334,-421.32,0.000106,2]
[335262351,1724056232343,-421.32,0.000106,2]
[335262352,1724056232351,-1260.148,0.00010637,2]
[335262353,1724056232361,-623.577,0.00010637,2]
[335262354,1724056232370,-557.43,0.00010637,2]
[335262355,1724056232379,-579.23,0.00010641,2]
[335262356,1724056232388,-421.32,0.000107,2]
[335262357,1724056232397,-421.32,0.000107,2]
[335262358,1724056232407,-421.32,0.000107,2]
[335262359,1724056232416,-179.6,0.000107,2]
[335262360,1724056232425,-1758.3333,0.00010789,2]
[335262361,1724056232435,-12314.42324481,0.000108,2]
[335262362,1724056232444,-421.32,0.000108,2]
[335262363,1724056232453,-150.56267527,0.00010802,2]
[335262364,1724056232462,-155.0,0.00010852,2]
[335262365,1724056232471,-155.0,0.00010861,2]
[335262366,1724056232480,-217.39,0.00010886,2]
[335262367,1724056232489,-378.22999541,0.00010888,2]
[335262368,1724056232498,-500.0,0.00010888,2]
[335262369,1724056232508,-584.21,0.00010888,2]
[335262370,1724056232517,-719.3,0.00010888,2]
[335262371,1724056232527,-15683.404443,0.00010888,2]
[335262372,1724056232536,-59001.468625,0.00010888,2]
[335262373,1724056232548,-500.0,0.00010888,2]
[335262374,1724056232557,-219.96239897,0.00010888,2]
[335262375,1724056232566,-249.58354714,0.00010888,2]
[335262376,1724056232575,-500.0,0.00010888,2]
[335262377,1724056232585,-279.39948714,0.00010888,2]
[335262378,1724056232595,-500.0,0.00010888,2]
[335262379,1724056232604,-500.0,0.00010888,2]
[335262380,1724056232613,-500.0,0.00010888,2]
[335262381,1724056232622,-522.5,0.00010888,2]
[335262382,1724056232631,-812.16,0.00010888,2]
[335262383,1724056232641,-500.0,0.00010888,2]
[335262384,1724056232650,-322.17021052,0.00010888,2]
[335262385,1724056232659,-2056.21,0.00010888,2]
[335262386,1724056232668,-671.33,0.00010888,2]
[335262387,1724056232677,-500.0,0.00010888,2]
[335262388,1724056232686,-500.0,0.00010888,2]
[335262389,1724056232696,-500.0,0.00010888,2]
[335262390,1724056232705,-297.04655933,0.00010888,2]
[335262391,1724056232714,-500.0,0.00010888,2]
[335262392,1724056232724,-500.0,0.00010888,2]
[335262393,1724056232733,-430.59600817,0.00010888,2]
[335262394,1724056232742,-619.66151561,0.00010888,2]
[335262395,1724056232751,-500.0,0.00010888,2]
[335262396,1724056232760,-192.5032656,0.00010888,2]
[335262397,1724056232770,-500.0,0.00010888,2]
[335262398,1724056232778,-154.70052765,0.00010888,2]
[335262399,1724056232787,-284.13237091,0.00010888,2]
[335262400,1724056232797,-500.0,0.00010888,2]
[335262401,1724056232808,-500.0,0.00010888,2]
[335262402,1724056232818,-500.0,0.00010888,2]
[335262403,1724056232828,-1316.95,0.00010888,2]
[335262404,1724056232837,-500.0,0.00010888,2]
[335262405,1724056232847,-366.60324494,0.00010888,2]
[335262406,1724056232856,-258.66514907,0.00010888,2]
[335262407,1724056232865,-418.31923903,0.00010888,2]
[335262408,1724056232874,-500.0,0.00010888,2]
[335262409,1724056232887,-500.0,0.00010888,2]
[335262410,1724056232897,-9616.63,0.00010888,2]
[335262411,1724056232910,-904.97,0.00010888,2]
[335262412,1724056232920,-500.0,0.00010888,2]
[335262413,1724056232930,-464.22545789,0.00010888,2]
[335262414,1724056232939,-465.55344716,0.00010888,2]
[335262415,1724056232949,-500.0,0.00010888,2]
[335262416,1724056232959,-500.0,0.00010888,2]
[335262417,1724056232969,-424.11829988,0.00010888,2]
[335262418,1724056232980,-500.0,0.00010888,2]
[335262419,1724056232990,-500.0,0.00010888,2]
[335262420,1724056232999,-2494.76,0.00010888,2]
[335262421,1724056233009,-812.64,0.00010888,2]
[335262422,1724056233018,-500.0,0.00010888,2]
[335262423,1724056233028,-500.0,0.00010888,2]
[335262424,1724056233038,-500.0,0.00010889,2]
[335262425,1724056233047,-500.0,0.00010889,2]
[335262426,1724056233057,-500.0,0.00010889,2]
[335262427,1724056233067,-500.0,0.00010889,2]
[335262428,1724056233078,-500.0,0.00010889,2]
[335262429,1724056233087,-500.0,0.00010889,2]
[335262430,1724056233097,-500.0,0.00010889,2]
[335262431,1724056233107,-570.03899387,0.00010889,2]
[335262432,1724056233117,-500.0,0.00010889,2]
[335262433,1724056233127,-510.09839938,0.00010889,2]
[335262434,1724056233136,-265.3201661,0.00010889,2]
[335262435,1724056233150,-234.6798339,0.00010889,2]
[335262436,1724056233160,-426.13591183,0.00010889,2]
[335262437,1724056233174,-73.86408817,0.00010889,2]
[335262438,1724056233183,-215.38591183,0.00010889,2]
[335262439,1724056233195,-284.61408817,0.00010889,2]
[335262440,1724056233204,-500.0,0.00010889,2]
[335262441,1724056233215,-500.0,0.00010889,2]
[335262442,1724056233224,-500.0,0.00010889,2]
[335262443,1724056233235,-500.0,0.00010889,2]
[335262444,1724056233245,-500.0,0.00010889,2]
[335262445,1724056233255,-272.1040795,0.00010889,2]
[335262446,1724056233264,-500.0,0.00010889,2]
[335262447,1724056233273,-520.98338931,0.00010889,2]
[335262448,1724056233284,-500.0,0.00010889,2]
[335262449,1724056233293,-500.0,0.00010889,2]
[335262450,1724056233303,-500.0,0.00010889,2]
[335262451,1724056233313,-488.55782571,0.00010889,2]
[335262452,1724056233323,-500.0,0.00010889,2]
[335262453,1724056233335,-500.0,0.00010889,2]
[335262454,1724056233346,-525.14321829,0.00010889,2]
[335262455,1724056233356,-500.0,0.00010889,2]
[335262456,1724056233365,-364.84548209,0.00010889,2]
[335262457,1724056233375,-500.0,0.00010889,2]
[335262458,1724056233385,-451.63619237,0.00010889,2]
[335262459,1724056233395,-605.74894317,0.00010889,2]
[335262460,1724056233405,-327.2140984,0.00010889,2]
[335262461,1724056233415,-508.77498942,0.00010889,2]
[335262462,1724056233425,-506.52625914,0.00010889,2]
[335262463,1724056233435,-504.49817095,0.00010889,2]
[335262464,1724056233445,-500.0,0.00010889,2]
[335262465,1724056233455,-507.59024977,0.00010889,2]
[335262466,1724056233465,-509.65018805,0.00010889,2]
[335262467,1724056233475,-508.50765736,0.00010889,2]
[335262468,1724056233485,-85.71588847,0.00010889,2]
[335262469,1724056233497,-412.85677595,0.00010889,2]
[335262470,1724056233507,-500.0,0.00010889,2]
[335262471,1724056233517,-502.92632429,0.00010889,2]
[335262472,1724056233527,-507.36681729,0.00010889,2]
[335262473,1724056233537,-276.8500825,0.00010889,2]
[335262474,1724056233549,-227.69738467,0.00010889,2]
[335262475,1724056233558,-240.82508061,0.00010889,2]
[335262476,1724056233570,-259.17491939,0.00010889,2]
[335262477,1724056233581,-450.34812787,0.00010889,2]
[335262478,1724056233592,-55.08635767,0.00010889,2]
[335262479,1724056233602,-387.69755085,0.00010889,2]
[335262480,1724056233666,-112.30244915,0.00010889,2]
[335262481,1724056233676,-206.37273345,0.00010889,2]
[335262482,1724056233686,-500.0,0.00010889,2]
[335262483,1724056233696,-508.98521305,0.00010889,2]
[335262484,1724056233706,-500.0,0.00010889,2]
[335262485,1724056233716,-503.57237179,0.00010889,2]
[335262486,1724056233725,-367.469706,0.00010889,2]
[335262487,1724056233735,-500.0,0.00010889,2]
[335262488,1724056233745,-502.92185294,0.00010889,2]
[335262489,1724056233755,-500.0,0.00010889,2]
[335262490,1724056233765,-504.82647366,0.00010889,2]
[335262491,1724056233774,-503.4654619,0.00010889,2]
[335262492,1724056233783,-498.5200659,0.00010889,2]
[335262493,1724056233793,-500.0,0.00010889,2]
[335262494,1724056233802,-498.43196298,0.00010889,2]
[335262495,1724056233812,-500.0,0.00010889,2]
[335262496,1724056233822,-506.14521912,0.00010889,2]
[335262497,1724056233834,-509.53843262,0.00010889,2]
[335262498,1724056233844,-500.0,0.00010889,2]
[335262499,1724056233854,-509.67314019,0.00010889,2]
[335262500,1724056233863,-500.0,0.00010889,2]
[335262501,1724056233873,-500.0,0.00010889,2]
[335262502,1724056233883,-503.18813693,0.00010889,2]
[335262503,1724056233893,-505.27194416,0.00010889,2]
[335262504,1724056233905,-500.0,0.00010889,2]
[335262505,1724056233915,-500.0,0.00010889,2]
[335262506,1724056233925,-498.43854754,0.00010889,2]
[335262507,1724056233935,-503.47046654,0.00010889,2]
[335262508,1724056233946,-500.0,0.00010889,2]
[335262509,1724056233956,-515.48917337,0.00010889,2]
[335262510,1724056233966,-576.18874832,0.00010889,2]
[335262511,1724056233977,-505.60503082,0.00010889,2]
[335262512,1724056233987,-500.0,0.00010889,2]
[335262513,1724056233997,-500.0,0.00010889,2]
[335262514,1724056234007,-500.0,0.00010889,2]
[335262515,1724056234017,-500.0,0.00010889,2]
[335262516,1724056234028,-502.23403983,0.00010889,2]
[335262517,1724056234038,-543.78373124,0.00010889,2]
[335262518,1724056234048,-500.0,0.00010889,2]
[335262519,1724056234058,-503.19631239,0.00010889,2]
[335262520,1724056234069,-505.01673432,0.00010889,2]
[335262521,1724056234081,-500.0,0.00010889,2]
[335262522,1724056234092,-506.24295064,0.00010889,2]
[335262523,1724056234102,-505.84874306,0.00010889,2]
[335262524,1724056234112,-500.0,0.00010889,2]
[335262525,1724056234122,-330.9068967,0.00010889,2]
[335262526,1724056234132,-227.47192414,0.00010889,2]
[335262527,1724056234142,-534.65585276,0.00010889,2]
[335262528,1724056234152,-564.19182317,0.00010889,2]
[335262529,1724056234161,-500.0,0.00010889,2]
[335262530,1724056234171,-500.0,0.00010889,2]
[335262531,1724056234180,-574.02162917,0.00010889,2]
[335262532,1724056234190,-502.451363,0.00010889,2]
[335262533,1724056234200,-562.33932846,0.00010889,2]
[335262534,1724056234211,-500.0,0.00010889,2]
[335262535,1724056234221,-500.0,0.00010889,2]
[335262536,1724056234231,-500.0,0.00010889,2]
[335262537,1724056234240,-500.0,0.00010889,2]
[335262538,1724056234250,-500.0,0.00010889,2]
[335262539,1724056234260,-500.0,0.00010889,2]
[335262540,1724056234270,-500.0,0.00010889,2]
[335262541,1724056234280,-500.0,0.00010889,2]
[335262542,1724056234290,-500.0,0.00010889,2]
[335262543,1724056234300,-500.0,0.00010889,2]
[335262544,1724056234309,-500.0,0.00010889,2]
[335262545,1724056234319,-500.0,0.00010889,2]
[335262546,1724056234334,-3170.826,0.00010889,2]
[335262547,1724056234343,-500.0,0.00010889,2]
[335262548,1724056234354,-294.20561933,0.00010889,2]
[335262549,1724056234363,-507.67697564,0.00010889,2]
[335262550,1724056234373,-500.0,0.00010889,2]
[335262551,1724056234384,-562.5181978,0.00010889,2]
[335262552,1724056234393,-500.0,0.00010889,2]
[335262553,1724056234403,-500.0,0.00010889,2]
[335262554,1724056234412,-500.0,0.00010889,2]
[335262555,1724056234422,-1273.39,0.00010889,2]
[335262556,1724056234432,-500.0,0.00010889,2]
[335262557,1724056234442,-500.0,0.00010889,2]
[335262558,1724056234451,-500.0,0.00010889,2]
[335262559,1724056234461,-500.0,0.00010889,2]
[335262560,1724056234471,-500.0,0.00010889,2]
[335262561,1724056234481,-500.0,0.00010889,2]
[335262562,1724056234491,-500.0,0.00010889,2]
[335262563,1724056234680,-500.0,0.00010889,2]
[335262564,1724056234690,-311.66158258,0.00010889,2]
[335262565,1724056234699,-336.23776474,0.00010889,2]
[335262566,1724056234708,-500.0,0.00010889,2]
[335262567,1724056234717,-509.91,0.00010889,2]
[335262568,1724056234727,-500.0,0.00010889,2]
[335262569,1724056234737,-527.27280672,0.00010889,2]
[335262570,1724056234747,-306.80773636,0.00010889,2]
[335262571,1724056234758,-516.31296678,0.00010889,2]
[335262572,1724056234767,-500.0,0.00010889,2]
[335262573,1724056234777,-500.0,0.00010889,2]
[335262574,1724056234786,-500.0,0.00010889,2]
[335262575,1724056234795,-302.23554586,0.00010889,2]
[335262576,1724056234805,-166.21233524,0.00010889,2]
[335262577,1724056234814,-500.0,0.00010889,2]
[335262578,1724056234824,-234.57205473,0.00010889,2]
[335262579,1724056234836,-634.4864762,0.00010889,2]
[335262580,1724056234846,-289.43342807,0.00010889,2]
[335262581,1724056234855,-343.44383358,0.00010889,2]
[335262582,1724056234866,-1734.18,0.00010889,2]
[335262583,1724056234876,-500.0,0.00010889,2]
[335262584,1724056234887,-539.55016859,0.00010889,2]
[335262585,1724056234897,-342.83821308,0.00010889,2]
[335262586,1724056234909,-268.18310216,0.00010889,2]
[335262587,1724056234919,-269.96286986,0.00010889,2]
[335262588,1724056234929,-383.91466669,0.00010889,2]
[335262589,1724056234939,-500.0,0.00010889,2]
[335262590,1724056234950,-500.0,0.00010889,2]
[335262591,1724056234959,-500.0,0.00010889,2]
[335262592,1724056234969,-500.0,0.00010889,2]
[335262593,1724056234979,-500.0,0.00010889,2]
[335262594,1724056234990,-500.0,0.00010889,2]
[335262595,1724056235000,-546.04146941,0.00010889,2]
[335262596,1724056235010,-500.0,0.00010889,2]
[335262597,1724056235020,-500.0,0.00010889,2]
[335262598,1724056235030,-158.37506984,0.00010889,2]
[335262599,1724056235039,-500.0,0.00010889,2]
[335262600,1724056235049,-481.25229284,0.00010889,2]
[335262601,1724056235058,-500.0,0.00010889,2]
[335262602,1724056235068,-2331.65,0.00010889,2]
[335262603,1724056235079,-1715.2,0.00010889,2]
[335262604,1724056235088,-500.0,0.00010889,2]
[335262605,1724056235099,-500.0,0.00010889,2]
[335262606,1724056235108,-500.0,0.00010889,2]
[335262607,1724056235118,-505.38236186,0.00010889,2]
[335262608,1724056235127,-500.0,0.00010889,2]
[335262609,1724056235138,-500.0,0.00010889,2]
[335262610,1724056235147,-312.5071217,0.00010889,2]
[335262611,1724056235157,-500.0,0.00010889,2]
[335262612,1724056235166,-7164.43326972,0.0001089,2]
[335262613,1724056235183,-348.26422483,0.0001089,2]
[335262618,1724056238114,-384.30158449,0.00010888,2]
[335262619,1724056238126,-405.79384232,0.00010888,2]
[335262620,1724056238172,-10.34457319,0.00010888,2]
[335262621,1724056238182,-500.0,0.00010888,2]
[335262622,1724056238192,-500.0,0.00010889,2]
[335262623,1724056238201,-78.70751534,0.0001089,2]
[335262624,1724056238212,-694.4950209,0.0001089,2]
[335262625,1724056238223,-959.22443874,0.0001089,2]
[335262626,1724056238235,-1839.93992941,0.0001089,2]
[335262627,1724056238246,-177123.37894969,0.0001089,2]
[335262628,1724056238256,-2310.65550261,0.0001089,2]
[335262629,1724056238265,-500.0,0.00010896,2]
[335262630,1724056238275,-812.16,0.00010896,2]
[335262631,1724056238284,-671.33,0.00010896,2]
[335262632,1724056238293,-500.0,0.00010896,2]
[335262633,1724056238302,-211.78720792,0.00010896,2]
[335262634,1724056238311,-500.0,0.00010896,2]
[335262635,1724056238320,-500.0,0.00010896,2]
[335262636,1724056238329,-500.0,0.00010896,2]
[335262637,1724056238338,-500.0,0.00010896,2]
[335262638,1724056238348,-500.0,0.00010896,2]
[335262639,1724056238357,-1316.95,0.00010896,2]
[335262640,1724056238367,-254.42451854,0.00010896,2]
[335262641,1724056238376,-500.0,0.00010896,2]
[335262642,1724056238385,-9616.63,0.00010896,2]
[335262643,1724056238394,-904.97,0.00010896,2]
[335262644,1724056238403,-500.0,0.00010896,2]
[335262645,1724056238413,-2494.76,0.00010896,2]
[335262646,1724056238422,-812.64,0.00010896,2]
[335262647,1724056238431,-800.44,0.00010896,2]
[335262648,1724056238441,-500.0,0.00010897,2]
[335262649,1724056238451,-500.0,0.00010897,2]
[335262650,1724056238460,-500.0,0.00010897,2]
[335262651,1724056238470,-500.0,0.00010897,2]
[335262652,1724056238479,-500.0,0.00010897,2]
[335262653,1724056238488,-9972.3889,0.00010898,2]
[335262654,1724056238498,-8141.3011,0.00010898,2]
[335262655,1724056238507,-493.199,0.00010898,2]
[335262656,1724056238516,-776.9081,0.00010898,2]
[335262657,1724056238526,-251.5377,0.00010898,2]
[335262658,1724056238535,-11817.6928,0.00010898,2]
[335262659,1724056238544,-421.36,0.000109,2]
[335262660,1724056238554,-1000.0,0.000109,2]
[335262661,1724056238563,-10725.96702157,0.000109,2]
[335262662,1724056238572,-232.07,0.00010959,2]
[335262663,1724056238586,-193.39,0.00010959,2]
[335262664,1724056238596,-161.16,0.00010959,2]
[335262665,1724056238611,-805.83,0.00010959,2]
[335262666,1724056238621,-188.1,0.00010979,2]
[335262668,1724056238631,-741.61979734,0.00010979,2]
[335262670,1724056238640,-217.39,0.00010979,2]
[335262672,1724056238649,-217.39,0.0001098,2]
[335262674,1724056238659,-217.39,0.0001098,2]
[335262676,1724056238669,-217.39,0.0001098,2]
[335262678,1724056238678,-217.39,0.0001098,2]
[335262680,1724056238689,-217.39,0.0001098,2]
[335262682,1724056238699,-217.39,0.0001098,2]
[335262684,1724056238708,-217.39,0.0001098,2]
[335262686,1724056238717,-217.39,0.0001098,2]
[335262687,1724056238727,-217.39,0.0001098,2]
[335262689,1724056238736,-217.39,0.0001098,2]
[335262691,1724056238745,-217.39,0.00010987,2]
[335262693,1724056238754,-500.0,0.00010989,2]
[335262695,1724056238763,-500.0,0.00010989,2]
[335262697,1724056238773,-500.0,0.00010989,2]
[335262698,1724056238782,-812.16,0.00010989,2]
[335262700,1724056238791,-812.16,0.00010989,2]
[335262702,1724056238800,-812.16,0.00010989,2]
[335262704,1724056238810,-671.33,0.00010989,2]
[335262706,1724056238819,-671.33,0.00010989,2]
[335262708,1724056238828,-671.33,0.00010989,2]
[335262710,1724056238838,-500.0,0.00010989,2]
[335262712,1724056238847,-500.0,0.00010989,2]
[335262713,1724056238856,-500.0,0.00010989,2]
[335262715,1724056238865,-500.0,0.00010989,2]
[335262717,1724056238875,-500.0,0.00010989,2]
[335262719,1724056238886,-429.82,0.00010989,2]
[335262721,1724056238895,-571.06,0.00010989,2]
[335262723,1724056238904,-500.0,0.00010989,2]
[335262725,1724056238917,-500.0,0.00010989,2]
[335262727,1724056238926,-500.0,0.00010989,2]
[335262729,1724056238935,-500.0,0.00010989,2]
[335262731,1724056238944,-1316.95,0.00010989,2]
[335262732,1724056238955,-1316.95,0.00010989,2]
[335262733,1724056238963,-1316.95,0.00010989,2]
[335262734,1724056238973,-500.0,0.00010989,2]
[335262735,1724056238982,-500.0,0.00010989,2]
[335262737,1724056238992,-500.0,0.00010989,2]
[335262738,1724056239001,-9616.63,0.00010989,2]
[335262739,1724056239010,-9616.63,0.00010989,2]
[335262740,1724056239020,-9616.63,0.00010989,2]
[335262741,1724056239029,-904.97,0.00010989,2]
[335262742,1724056239039,-904.97,0.00010989,2]
[335262743,1724056239049,-904.97,0.00010989,2]
[335262744,1724056239059,-500.0,0.00010989,2]
[335262745,1724056239069,-500.0,0.00010989,2]
[335262746,1724056239078,-2494.76,0.00010989,2]
[335262747,1724056239091,-812.64,0.00010989,2]
[335262748,1724056239100,-2494.76,0.00010989,2]
[335262749,1724056239110,-812.64,0.00010989,2]
[335262750,1724056239119,-2494.76,0.00010989,2]
[335262751,1724056239128,-812.64,0.00010989,2]
[335262752,1724056239137,-500.0,0.00010989,2]
[335262753,1724056239146,-500.0,0.00010989,2]
[335262754,1724056239156,-500.0,0.00010989,2]
[335262755,1724056239165,-207.45929473,0.00010989,2]
[335262756,1724056239174,-500.0,0.00010989,2]
[335262757,1724056239184,-800.44,0.00010989,2]
[335262758,1724056239194,-500.0,0.00010989,2]
[335262759,1724056239204,-800.44,0.00010989,2]
[335262760,1724056239213,-353396.05153977,0.0001099,3]
[335262761,1724056239226,-2602.07999994,0.0001099,3]
[335262762,1724056239244,-526.17759152,0.0001099,3]
[335262763,1724056239255,-445.42957939,0.0001099,3]
[335262764,1724056239351,-800.44,0.00010989,2]
[335262765,1724056239361,-4861.7690083,0.0001099,3]
[335262766,1724056239371,-265.17710035,0.0001099,3]
[335262767,1724056239383,-995.36520928,0.0001099,3]
[335262768,1724056239394,-1028.52477935,0.0001099,3]
[335262769,1724056239405,-666.77284336,0.0001099,3]
[335262770,1724056239416,-11554.30971465,0.0001099,3]
[335262771,1724056239578,-831.15205059,0.0001099,3]
[335262772,1724056239590,-482.71518239,0.0001099,3]
[335262773,1724056239601,-932.0,0.0001099,3]
[335262774,1724056239612,-77553.50000008,0.0001099,3]
[335262775,1724056239623,-375.11581923,0.0001099,3]
[335262776,1724056240402,-500.0,0.00010888,2]
[335262777,1724056240411,-196.80425984,0.00010989,2]
[335262778,1724056240421,-4409.69574016,0.0001099,3]
[335262779,1724056240566,-23473.51817953,0.0001099,3]
[335262780,1724056240578,-452.77944398,0.0001099,3]
[335262792,1724056243732,-441.344958,0.00010889,2]
[335262801,1724056246318,-500.0,0.00010888,2]
[335262802,1724056246327,-58.655042,0.00010889,2]
[335262803,1724056246338,-500.0,0.00010889,2]
[335262804,1724056246348,-520.90979163,0.00010889,2]
[335262805,1724056246358,-687.40071418,0.0001099,3]
[335262806,1724056246417,-754.85459043,0.0001099,3]
[335262807,1724056246478,-1397.67761202,0.0001099,3]
[335262808,1724056246489,-1727.53381831,0.0001099,3]
[335262814,1724056268247,800.0,9.9e-05,3]
[335262817,1724056379446,-2545.44,9.969e-05,2]
[335262818,1724056379468,-1700.0,0.0001,3]
[335262819,1724056442649,296.74179456,0.0001,2]
[335262820,1724056445912,341.14193703,0.0001,4]
[335262821,1724056461851,341.14193703,0.0001,4]
[335262822,1724056547231,514.82,9.918e-05,2]
[335262823,1724056563813,155.52,9.96e-05,2]
[335262824,1724056577874,341.14193703,0.0001,4]
[335262825,1724056641438,500.40112154,9.807e-05,2]
[335262826,1724056664861,203.63750945,0.0001,4]
[335262827,1724056689011,2348.59,9.918e-05,2]
[335262828,1724056697745,190.26,8.219e-05,2]
[335262829,1724056703261,7938.16376336,0.0001,7]
[335262830,1724056727788,250.0,9.862e-05,2]
[335262831,1724056841054,194.76,9.83e-05,2]
[335262832,1724056861617,200.0,9.835e-05,2]
[335262833,1724056869195,172.55,9.853e-05,2]
[335262834,1724056882051,23900.0,9.848e-05,2]
[335262835,1724056890779,2975.58,9.842e-05,2]
[335262836,1724056919470,164.59,9.842e-05,2]
[335262837,1724056996323,3722.0,9.811e-05,2]
[335262838,1724057008526,155.0,9.84e-05,2]
[335262839,1724057015500,285.13,9.816e-05,2]
[335262840,1724057022171,588.14,9.81e-05,2]
[335262841,1724057112793,177.24,9.781e-05,2]
[335262842,1724057157014,192.96,8.219e-05,2]
[335262844,1724057228885,800.0,9.9e-05,3]
[335262866,1724057432304,-559.19,9.918e-05,2]
[335262868,1724057432317,-300.0,9.999e-05,2]
[335262870,1724057432326,-753.5718072,0.0001,7]
[335262873,1724057432338,-499.29,0.0001,7]
[335262875,1724057432361,-495.74,0.0001,7]
[335262876,1724057432422,-14090.28773082,0.0001,7]
[335262877,1724057432481,-1622.7809038,0.0001,7]
[335262878,1724057432491,-1259.29953618,0.0001,2]
[335262879,1724057432500,-1050.0,0.0001,2]
[335262880,1724057432509,-284.64853567,0.0001,2]
[335262881,1724057432519,-1600.0,0.0001,3]
[335262882,1724057432528,-1188.48082399,0.0001,2]
[335262897,1724057438297,-1184.71907255,0.0001,2]
[335262898,1724057438307,-2400.0,0.000101,3]
[335262899,1724057438320,-3200.0,0.000102,3]
[335262900,1724057438329,-150.0,0.00010274,2]
[335262901,1724057438338,-3332.53269504,0.000103,3]
[335262902,1724057438417,-510.51915512,0.000103,3]
[335262903,1724057438465,-156.94814984,0.000103,3]
[335262904,1724057438475,-836.01,0.000104,2]
[335262905,1724057438484,-801.32,0.000104,2]
[335262906,1724057438493,-167.11,0.000104,2]
[335262907,1724057438502,-150.0,0.000104,2]
[335262908,1724057438511,-150.0,0.000104,2]
[335262909,1724057438521,-800.0,0.000104,3]
[335262910,1724057438530,-192.96,0.00010472,2]
[335262911,1724057438539,-207.0,0.0001048,2]
[335262912,1724057438548,-836.01,0.000105,2]
[335262913,1724057438558,-800.0,0.000105,3]
[335262914,1724057438567,-112.39617355,0.00010505,2]
[335262915,1724057438579,-379.06408784,0.00010505,2]
[335262917,1724057438590,-473.19276624,0.00010505,2]
[335262918,1724057438598,-60.64416922,0.00010566,2]
[335262919,1724057438609,-1439.35583078,0.00010566,2]
[335262920,1724057438618,-499.84352579,0.000106,3]
[335262921,1724057438629,-300.15647421,0.000106,3]
[335262922,1724057438638,-207.0,0.0001066,2]
[335262923,1724057438647,-155.14790047,0.00010699,2]
[335262924,1724057438656,-1000.0,0.000107,2]
[335262925,1724057438665,-130.55062532,0.000107,3]
[335263106,1724057440531,-669.44937468,0.000107,3]
[335263108,1724057440542,-1002.3856565,0.00010713,2]
[335263110,1724057440551,-1698.56682524,0.00010788,2]
[335263116,1724057440609,-670.37,0.00010788,2]
[335263118,1724057440621,-557.38108761,0.00010788,2]
[335263123,1724057440679,-2463.81135,0.00010788,2]
[335263132,1724057440792,-1175.02,0.00010788,2]
[335263137,1724057440849,-389.44550813,0.00010788,2]
[335263142,1724057440908,-131662.44362902,0.00010788,2]
[335263144,1724057440918,-1100.0,0.000108,3]
[335263145,1724057440929,-207.0,0.0001083,2]
[335263147,1724057440938,-439.4227239,0.00010861,2]
[335263149,1724057440948,-155.0,0.00010862,2]